bitfinex-derivatives/quotes_BTCF0:USTF0_20241218
["timestamp","ask_amount","ask_price","bid_price","bid_amount"]
[1734554224952,0.11137224,101240.0,101230.0,0.349419]
[1734554224953,0.13921531,101240.0,101230.0,0.349419]
[1734554225154,0.50001531,101240.0,101230.0,0.349419]
[1734554225353,0.50001531,101240.0,101200.0,0.81318407]
[1734554225551,0.3608,101230.0,101210.0,0.049425]
[1734554225749,0.3608,101220.0,101210.0,0.049425]
[1734554226562,0.3638,101220.0,101210.0,0.049425]
[1734554227066,0.3608,101220.0,101210.0,0.049425]
[1734554227468,0.410226,101220.0,101200.0,0.14951117]
[1734554227667,0.3608,101210.0,101200.0,0.14951117]
[1734554228368,0.3608,101210.0,101200.0,0.15451117]
[1734554228968,0.3608,101210.0,101200.0,0.15151117]
[1734554229163,0.3608,101210.0,101200.0,0.10207717]
[1734554229562,0.410229,101210.0,101200.0,0.10207717]
[1734554231375,0.96844258,101210.0,101170.0,0.04325932]
[1734554231569,0.049449,101170.0,101160.0,0.00050032]
[1734554231768,0.66846258,101170.0,101150.0,0.03877266]
[1734554231968,0.410254,101160.0,101140.0,0.21088842]
[1734554232169,0.049473,101120.0,101110.0,0.41502116]
[1734554232370,0.6686111,101120.0,101110.0,0.41502116]
[1734554232571,0.6686111,101120.0,101110.0,0.37452475]
[1734554232778,0.049478,101110.0,101100.0,0.56436117]
[1734554232971,0.410278,101110.0,101100.0,8.5e-07]
[1734554233168,0.049488,101090.0,101080.0,0.11487375]
[1734554233371,0.25821358,101080.0,101060.0,0.2590504]
[1734554233572,0.3608,101080.0,101070.0,0.049498]
[1734554233787,0.3608,101100.0,101090.0,0.049488]
[1734554234084,0.3608,101100.0,101070.0,0.04961431]
[1734554234085,0.27843062,101090.0,101070.0,0.04961431]
[1734554234283,0.66850658,101080.0,101070.0,0.00011731]
[1734554234583,0.049503,101060.0,101030.0,0.049516]
[1734554234771,0.3608,101040.0,101010.0,0.41181216]
[1734554234969,0.25821358,101030.0,101020.0,0.049522]
[1734554235178,0.25821358,101030.0,101000.0,0.46160341]
[1734554235179,0.61901358,101030.0,101000.0,0.10080341]
[1734554235380,0.61901358,101030.0,101000.0,0.15033441]
[1734554235381,0.3608,101010.0,101000.0,0.15033441]
[1734554235678,9.73e-05,101010.0,101000.0,0.40867307]
[1734554235877,3e-07,101010.0,101000.0,0.89118695]
[1734554236082,3e-07,101010.0,101000.0,0.64071795]
[1734554236382,0.2608003,101030.0,100990.0,0.62025418]
[1734554236683,0.3608,101050.0,101030.0,0.049515]
[1734554236882,0.02014812,101040.0,101010.0,0.3608]
[1734554237071,0.3608,101030.0,101010.0,0.3608]
[1734554237276,9.099e-05,101020.0,101010.0,0.410327]
[1734554237472,0.36089099,101020.0,101010.0,0.052527]
[1734554237672,9.9e-07,101020.0,101010.0,0.97154058]
[1734554237878,1.42144397,101040.0,101010.0,1.26026212]
[1734554237879,0.001,101040.0,101010.0,1.26026212]
[1734554238284,0.3608,101040.0,101030.0,0.049517]
[1734554238984,9.696e-05,101040.0,101030.0,0.96853058]
[1734554239185,0.17090061,101040.0,101030.0,0.96853058]
[1734554239481,0.17090061,101040.0,101030.0,0.710277]
[1734554239683,0.17090061,101040.0,101030.0,0.410277]
[1734554240079,6.1e-07,101040.0,101030.0,0.96849058]
[1734554240279,0.19460426,101060.0,101030.0,1.28453358]
[1734554240476,0.19460426,101060.0,101050.0,0.30772158]
[1734554240782,0.004,101040.0,101030.0,0.00096]
[1734554240986,0.3648,101040.0,101030.0,0.049517]
[1734554241284,0.44114218,101040.0,101030.0,0.04959897]
[1734554241473,0.36489072,101040.0,101030.0,0.04959897]
[1734554241679,0.36089072,101040.0,101030.0,0.04959897]
[1734554242283,0.36089072,101040.0,101030.0,0.05059897]
[1734554242484,0.36389072,101040.0,101030.0,0.05059897]
[1734554242684,0.48965418,101040.0,101030.0,0.00108197]
[1734554242982,0.47493429,101040.0,101030.0,0.04959897]
[1734554243193,0.47493429,101040.0,101030.0,0.35059897]
[1734554243194,0.12013429,101040.0,101030.0,0.35059897]
[1734554243486,0.13880447,101060.0,101050.0,0.049508]
[1734554243684,0.3608,101060.0,101040.0,0.444412]
[1734554243889,0.410309,101050.0,101030.0,0.04959897]
[1734554244182,0.3608,101050.0,101030.0,0.04959897]
[1734554244386,0.41039174,101040.0,101030.0,8.197e-05]
[1734554244773,0.74485678,101040.0,101030.0,8.197e-05]
[1734554244979,1.04485678,101040.0,101030.0,8.197e-05]
[1734554245180,0.36071803,101030.0,100990.0,0.07241283]
[1734554245381,0.7216,101000.0,100990.0,0.07241283]
[1734554245580,0.7216,101000.0,100990.0,0.02139145]
[1734554245784,0.7216,101000.0,100990.0,0.07092845]
[1734554246187,0.7216,101000.0,100990.0,0.08001618]
[1734554246386,0.79735146,101000.0,100990.0,0.03047918]
[1734554246585,0.7216,101000.0,100960.0,0.00148561]
[1734554246793,0.7216,101000.0,100920.0,0.01488]
[1734554246794,0.3608,100970.0,100920.0,0.02296536]
[1734554247091,0.3608,100960.0,100950.0,0.049554]
[1734554247285,0.7216,100960.0,100940.0,0.049561]
[1734554247588,0.36091071,100980.0,100970.0,0.049547]
[1734554247885,0.36091071,100980.0,100950.0,0.04964459]
[1734554247886,0.36091071,100980.0,100950.0,8.759e-05]
[1734554248077,0.36091071,100980.0,100970.0,0.049547]
[1734554248682,0.00148608,101010.0,101000.0,0.049532]
[1734554248885,0.13968603,101010.0,101000.0,0.049532]
[1734554249088,0.13819995,101010.0,101000.0,0.25821358]
[1734554249290,0.85979995,101010.0,101000.0,0.60774558]
[1734554249591,0.049514,101040.0,101020.0,0.049522]
[1734554249592,0.3608,101030.0,101020.0,0.049522]
[1734554249791,0.36088662,101030.0,101020.0,0.049522]
[1734554249997,0.43663808,101030.0,101000.0,0.00112218]
[1734554250179,0.410327,101010.0,101000.0,0.05065318]
[1734554250488,0.3608,101010.0,101000.0,0.05015318]
[1734554250688,0.3608,101010.0,101000.0,0.05115318]
[1734554251087,0.3608,101010.0,101000.0,0.349531]
[1734554251293,0.3608,101020.0,101010.0,0.049527]
[1734554251493,0.41040462,101030.0,101010.0,0.049527]
[1734554251800,0.410322,101020.0,100980.0,0.3]
[1734554252094,0.3638,101010.0,101000.0,0.049531]
[1734554252597,0.3608,101010.0,101000.0,0.04961658]
[1734554253196,0.3608,101020.0,101010.0,0.049527]
[1734554253389,6.2e-07,101030.0,101020.0,0.049522]
[1734554253701,6.2e-07,101030.0,101020.0,0.805522]
[1734554253890,6.2e-07,101030.0,101020.0,1.105522]
[1734554254291,0.66771626,101090.0,101040.0,0.049512]
[1734554254292,0.3608,101080.0,101040.0,0.049512]
[1734554254485,0.49997566,101090.0,101070.0,0.66851158]
[1734554254693,0.49937565,101090.0,101080.0,0.049493]
[1734554255290,0.49937565,101090.0,101080.0,0.34960586]
[1734554255491,0.3608,101090.0,101080.0,0.34960586]
[1734554255692,0.3608,101130.0,101100.0,0.049483]
[1734554255899,0.3608,101130.0,101120.0,0.30768658]
[1734554256116,0.19347993,101150.0,101140.0,0.049463]
[1734554256299,0.19347993,101150.0,101140.0,0.66847658]
[1734554256494,0.19347993,101150.0,101140.0,0.96847658]
[1734554256811,0.19347993,101150.0,101140.0,0.96855147]
[1734554257098,1e-06,101200.0,101150.0,0.3608]
[1734554257304,1e-06,101200.0,101190.0,0.30765258]
[1734554257498,1e-06,101200.0,101190.0,0.60765258]
[1734554257803,1e-06,101200.0,101190.0,0.25821358]
[1734554258001,1e-06,101200.0,101190.0,0.30773499]
[1734554258192,0.04951637,101200.0,101190.0,8.241e-05]
[1734554258399,0.48606783,101200.0,101190.0,8.241e-05]
[1734554258594,0.44063383,101200.0,101160.0,0.02139086]
[1734554258794,0.410249,101170.0,101160.0,0.00148269]
[1734554259301,0.049463,101150.0,101100.0,0.62381358]
[1734554259494,0.3608,101140.0,101120.0,0.049469]
[1734554259801,0.3608,101170.0,101150.0,0.049459]
[1734554260001,0.3608,101170.0,101150.0,0.049457]
[1734554260204,0.3608,101160.0,101150.0,0.049457]
[1734554260409,0.3608,101160.0,101130.0,0.38074106]
[1734554260599,0.0005,101150.0,101140.0,0.049463]
[1734554261602,0.3608,101190.0,101180.0,0.049444]
[1734554261805,0.43655146,101190.0,101160.0,0.049453]
[1734554262000,0.61901358,101170.0,101130.0,0.38074106]
[1734554262199,0.66847258,101150.0,101140.0,0.002]
[1734554262396,1.02927258,101150.0,101140.0,0.002]
[1734554262598,1.10552404,101150.0,101140.0,0.002]
[1734554263003,1.10552404,101150.0,101140.0,0.003]
[1734554263303,1.35615706,101150.0,101100.0,0.3608]
[1734554263498,0.3608,101120.0,101080.0,0.36228377]
[1734554263806,0.410288,101090.0,101080.0,0.00148377]
[1734554264201,0.74434767,101090.0,101080.0,9.808e-05]
[1734554264510,0.049506,101060.0,101030.0,0.049517]
[1734554264699,0.3608,101050.0,101030.0,0.049517]
[1734554264900,0.410309,101050.0,101030.0,0.02065815]
[1734554265102,0.410309,101050.0,101030.0,0.07017515]
[1734554265103,0.43655138,101050.0,101030.0,0.07017515]
[1734554265403,0.410307,101050.0,101040.0,7.084e-05]
[1734554265603,0.48605838,101050.0,101040.0,7.084e-05]
[1734554266105,0.48905838,101050.0,101040.0,7.084e-05]
[1734554266305,0.43955138,101050.0,101040.0,7.084e-05]
[1734554266506,0.3638,101050.0,101040.0,7.084e-05]
[1734554266704,0.48905838,101050.0,101040.0,7.084e-05]
[1734554267098,0.48905838,101050.0,101030.0,0.00046]
[1734554267099,0.43955138,101050.0,101000.0,0.07630011]
[1734554267298,0.410319,101030.0,101010.0,0.01998756]
[1734554267704,0.48607038,101030.0,101010.0,0.01998756]
[1734554267910,0.3608,101020.0,101010.0,0.01998756]
[1734554268106,0.36091973,101020.0,101010.0,0.0201098]
[1734554268608,0.00011973,101020.0,101010.0,0.0716368]
[1734554268795,0.36091973,101020.0,101010.0,0.0716368]
[1734554268994,0.36091973,101020.0,101010.0,0.0221098]
[1734554269200,0.00111973,101020.0,101010.0,0.0716368]
[1734554269606,0.00111973,101020.0,101010.0,0.7324368]
[1734554269803,0.00111973,101020.0,101010.0,0.0716368]
[1734554270015,0.36291973,101020.0,101010.0,0.0726368]
[1734554270197,0.36291973,101020.0,101010.0,0.001]
[1734554270509,0.36191973,101020.0,101000.0,0.049532]
[1734554270709,0.36291973,101020.0,101010.0,0.001]
[1734554270910,0.48819311,101020.0,101010.0,0.001]
[1734554271097,0.48919311,101020.0,101010.0,0.001]
[1734554271300,0.00211973,101020.0,101010.0,0.34962859]
[1734554271496,0.00011973,101020.0,101010.0,0.96864217]
[1734554271707,0.3608,101050.0,101040.0,0.049512]
[1734554271900,0.36228535,101060.0,101050.0,0.049507]
[1734554272101,0.049509,101050.0,101030.0,0.30772858]
[1734554272303,0.410315,101040.0,101010.0,1.03576508]
[1734554272500,0.410322,101020.0,101010.0,0.00010159]
[1734554272705,0.41043436,101020.0,101010.0,0.00010159]
[1734554273008,0.48818574,101020.0,101010.0,0.00010159]
[1734554273201,0.00211236,101020.0,101010.0,0.34962859]
[1734554273396,0.00211236,101020.0,101010.0,0.60784217]
[1734554273801,0.002,101020.0,101010.0,1.33428217]
[1734554274008,0.009,101050.0,101040.0,0.049512]
[1734554274205,0.41178835,101060.0,101040.0,0.049512]
[1734554274707,0.43074331,101070.0,101050.0,0.049507]
[1734554274897,0.43086457,101070.0,101050.0,0.049507]
[1734554275096,0.43086457,101070.0,101040.0,0.3608]
[1734554275296,0.7216,101050.0,101020.0,0.0014847]
[1734554275500,0.3668,101060.0,101040.0,0.049512]
[1734554275703,0.3668,101060.0,101050.0,0.049507]
[1734554275908,0.3608,101060.0,101040.0,0.04951]
[1734554276107,0.3608,101060.0,101020.0,0.0014847]
[1734554276108,0.049514,101040.0,101020.0,0.0014847]
[1734554276302,0.049517,101030.0,101020.0,0.0014847]
[1734554276502,0.3608,101030.0,101020.0,0.0014847]
[1734554277104,0.48606838,101030.0,101020.0,0.0014847]
[1734554277306,0.43655138,101030.0,101010.0,0.00010159]
[1734554277604,0.410308,101050.0,101040.0,0.001]
[1734554278010,0.41230857,101060.0,101040.0,0.049512]
[1734554278206,0.48753994,101060.0,101040.0,0.049512]
[1734554278409,0.049513,101040.0,101020.0,0.058522]
[1734554278604,0.7216,101030.0,101020.0,0.053522]
[1734554278803,0.7216,101030.0,101020.0,0.049522]
[1734554279008,0.7226,101030.0,101020.0,0.049522]
[1734554279407,0.772119,101030.0,101010.0,0.05162759]
[1734554279604,0.3608,101040.0,101010.0,0.71042759]
[1734554279803,0.3638,101030.0,101020.0,0.049521]
[1734554280501,0.3608,101050.0,101030.0,0.049517]
[1734554280707,0.410315,101040.0,101020.0,0.049521]
[1734554280916,0.3608,101040.0,101030.0,0.049517]
[1734554281210,0.38279009,101060.0,101040.0,0.049512]
[1734554281406,0.00148556,101060.0,101050.0,0.049507]
[1734554281605,5.6e-07,101060.0,101050.0,0.049507]
[1734554281802,0.1,101100.0,101060.0,0.049502]
[1734554282005,0.19399994,101120.0,101100.0,0.049483]
[1734554282205,0.22111993,101130.0,101100.0,0.049483]
[1734554282206,9.3e-07,101130.0,101110.0,1.03421158]
[1734554282408,0.16737907,101130.0,101120.0,0.049473]
[1734554282906,0.65340045,101130.0,101120.0,0.00010255]
[1734554283108,0.86214403,101130.0,101090.0,0.3608]
[1734554283312,0.29259945,101130.0,101100.0,0.049478]
[1734554283510,0.29259945,101130.0,101090.0,0.06904291]
[1734554283511,0.3608,101110.0,101090.0,0.06904291]
[1734554283810,0.3608,101110.0,101070.0,0.00148364]
[1734554283811,0.3608,101100.0,101070.0,0.00148364]
[1734554284012,0.43655138,101110.0,101080.0,0.049492]
[1734554284214,0.049484,101100.0,101080.0,0.04959096]
[1734554284413,0.049488,101090.0,101080.0,0.00010096]
[1734554284607,0.410288,101090.0,101080.0,0.00010096]
[1734554284910,0.051475,101110.0,101090.0,0.049482]
[1734554285112,0.04948,101100.0,101080.0,0.41038896]
[1734554285316,0.049484,101090.0,101080.0,0.36090096]
[1734554285611,0.48603538,101090.0,101080.0,0.00010096]
[1734554285810,0.97749758,101090.0,101050.0,0.02018368]
[1734554286020,0.4103,101060.0,101040.0,0.049508]
[1734554286216,0.049508,101040.0,101020.0,0.02015794]
[1734554286511,0.3608,101030.0,101010.0,0.41780662]
[1734554286717,0.3608,101020.0,101010.0,0.41664662]
[1734554286904,0.049506,101050.0,101020.0,0.049516]
[1734554287105,0.41031,101040.0,101020.0,0.049516]
[1734554287307,0.410315,101030.0,101010.0,0.3825558]
[1734554287513,0.410315,101030.0,101010.0,0.00158598]
[1734554287813,0.410315,101030.0,101020.0,0.049518]
[1734554287814,0.3608,101030.0,101020.0,0.049518]
[1734554288001,0.3608,101040.0,101020.0,0.049518]
[1734554288206,0.001,101040.0,101020.0,0.051518]
[1734554288512,0.001,101040.0,101030.0,0.66852658]
[1734554288705,0.3608,101060.0,101030.0,0.25821358]
[1734554288909,0.0495745,101070.0,101050.0,0.30771558]
[1734554289105,8.05e-05,101070.0,101060.0,0.049498]
[1734554289305,0.73663188,101070.0,101020.0,0.328]
[1734554289514,0.73663188,101070.0,101010.0,0.41190798]
[1734554289515,0.3608,101040.0,101010.0,0.41190798]
[1734554289813,0.3608,101050.0,101030.0,0.049509]
[1734554290017,0.049516,101030.0,101010.0,0.05110598]
[1734554290321,0.410314,101030.0,101010.0,0.05110798]
[1734554290511,0.48606538,101030.0,101010.0,0.05110798]
[1734554290711,0.48606538,101030.0,101010.0,0.00158598]
[1734554290907,0.049518,101020.0,101010.0,0.00158598]
[1734554291211,0.410318,101020.0,101010.0,0.00010136]
[1734554291508,0.049523,101010.0,101000.0,0.02243376]
[1734554291713,0.66853658,101010.0,101000.0,0.02243376]
[1734554291920,0.049527,101000.0,100960.0,0.0005]
[1734554292118,0.771142,100970.0,100960.0,0.0005]
[1734554292316,1.02946154,100970.0,100960.0,0.0005]
[1734554292511,0.00010596,100970.0,100960.0,0.0005]
[1734554292706,0.00010596,100970.0,100960.0,0.96906058]
[1734554292912,0.41180946,101010.0,100980.0,0.049534]
[1734554293113,0.00148646,101010.0,100990.0,0.3608]
[1734554293314,0.00148646,101010.0,101000.0,0.049527]
[1734554293632,0.05100946,101010.0,100980.0,0.410336]
[1734554293925,0.49554678,101010.0,100990.0,0.3608]
[1734554294417,0.410327,101000.0,100980.0,0.049536]
[1734554294624,0.049527,101000.0,100980.0,0.049536]
[1734554294827,0.049527,101000.0,100980.0,0.051536]
[1734554295014,0.09373532,101010.0,101000.0,0.049527]
[1734554295320,0.05562004,101010.0,100990.0,0.3608]
[1734554295523,0.00509804,101010.0,100980.0,0.61901358]
[1734554295817,0.04962204,101010.0,100990.0,9.571e-05]
[1734554296012,0.410327,101000.0,100990.0,9.571e-05]
[1734554296914,0.3608,101000.0,100990.0,9.571e-05]
[1734554297125,0.36389804,101010.0,100990.0,0.41042471]
[1734554297324,0.42242304,101010.0,100990.0,9.571e-05]
[1734554297518,0.410327,101000.0,100990.0,9.571e-05]
[1734554297918,0.422327,101000.0,100990.0,9.571e-05]
[1734554298613,0.37045805,101010.0,101000.0,0.049527]
[1734554298819,0.003,101000.0,100990.0,0.04962771]
[1734554299021,0.003,101000.0,100990.0,0.34962771]
[1734554299224,0.012,101000.0,100990.0,0.04962771]
[1734554299628,0.012,101000.0,100990.0,9.571e-05]
[1734554300316,0.419327,101000.0,100990.0,9.571e-05]
[1734554300520,0.009,101000.0,100990.0,0.04962771]
[1734554300717,0.00341804,101010.0,100990.0,0.66089571]
[1734554300923,0.00148573,101040.0,101010.0,0.049518]
[1734554301141,0.00148573,101040.0,101020.0,0.61901358]
[1734554301424,0.00148573,101040.0,101030.0,0.049512]
[1734554301729,0.05099573,101040.0,101020.0,0.049517]
[1734554301921,0.3609223,101030.0,101020.0,0.049517]
[1734554302123,0.4104363,101030.0,101010.0,0.04952]
[1734554302317,0.3609223,101030.0,101000.0,0.91901358]
[1734554302522,0.0001223,101030.0,101020.0,0.30773058]
[1734554302723,1e-08,101030.0,101020.0,0.66853058]
[1734554302924,1e-08,101030.0,101020.0,0.96853058]
[1734554303229,0.04880116,101060.0,101040.0,0.049504]
[1734554303529,0.3608,101070.0,101040.0,0.049504]
[1734554303729,0.004,101040.0,101030.0,0.410312]
[1734554304030,0.049512,101030.0,101020.0,0.049516]
[1734554304239,0.001,101030.0,101020.0,0.11835643]
[1734554304523,0.411312,101030.0,101020.0,0.08074101]
[1734554304729,0.410312,101030.0,101020.0,0.07474101]
[1734554306628,0.049517,101020.0,100970.0,0.28448748]
[1734554306828,0.410334,100990.0,100970.0,0.23494748]
[1734554307027,0.410334,100990.0,100960.0,0.70145404]
[1734554307028,0.3608,100980.0,100960.0,0.23494748]
[1734554307326,0.049542,100970.0,100960.0,0.23494748]
[1734554307524,9.546e-05,100970.0,100960.0,0.23506737]
[1734554307723,9.546e-05,100970.0,100960.0,0.58461337]
[1734554307929,0.36228656,101000.0,100980.0,0.049533]
[1734554308125,0.050537,100980.0,100970.0,0.002]
[1734554308324,1.03539058,100980.0,100960.0,0.00911989]
[1734554308531,0.410342,100970.0,100960.0,2.443e-05]
[1734554308730,0.410342,100970.0,100960.0,0.00302443]
[1734554309522,0.6609252,100970.0,100930.0,0.00148616]
[1734554309727,0.66856958,100940.0,100930.0,0.00148616]
[1734554310538,0.66856958,100940.0,100930.0,0.00161328]
[1734554310831,0.96856958,100940.0,100900.0,0.1]
[1734554311031,0.410366,100920.0,100900.0,0.149576]
[1734554311233,0.3608,100920.0,100900.0,0.1]
[1734554311536,0.410367,100920.0,100900.0,0.149575]
[1734554311731,0.41047646,100920.0,100910.0,8.665e-05]
[1734554312235,4.6e-07,100920.0,100910.0,0.96867123]
[1734554312425,0.002,100940.0,100930.0,0.049561]
[1734554312627,0.3608,100980.0,100930.0,0.55821358]
[1734554312933,0.19586902,100990.0,100980.0,0.049537]
[1734554313123,0.08381197,101020.0,100990.0,0.049532]
[1734554313326,0.08381197,101020.0,101010.0,0.771122]
[1734554313526,0.049522,101010.0,101000.0,0.36089762]
[1734554313727,0.46997848,101020.0,101000.0,0.2583112]
[1734554314031,0.46997848,101020.0,101000.0,9.762e-05]
[1734554314032,0.049522,101010.0,101000.0,9.762e-05]
[1734554314335,0.410322,101010.0,101000.0,9.762e-05]
[1734554314525,0.710322,101010.0,101000.0,6.2e-07]
[1734554314732,0.049532,100990.0,100980.0,1e-07]
[1734554314934,0.049542,100970.0,100960.0,0.34896118]
[1734554315131,0.771142,100970.0,100960.0,0.34896118]
[1734554315537,0.049556,100940.0,100920.0,0.30777858]
[1734554315737,0.049556,100940.0,100920.0,0.66857858]
[1734554315938,0.36090814,100950.0,100930.0,8.925e-05]
[1734554316235,0.36090814,100950.0,100930.0,0.25821358]
[1734554316440,0.04966114,100950.0,100940.0,0.3608]
[1734554316733,0.00010814,100950.0,100940.0,0.710356]
[1734554316929,0.00148689,101000.0,100980.0,0.049537]
[1734554317126,0.35722844,101010.0,100990.0,0.66854558]
[1734554317331,0.30770544,101010.0,101000.0,0.049527]
[1734554317525,0.35722744,101010.0,101000.0,0.049527]
[1734554317930,0.30779578,101010.0,101000.0,0.00010864]
[1734554318236,9.034e-05,101010.0,101000.0,0.04963564]
[1734554318435,9.034e-05,101010.0,101000.0,0.34963564]
[1734554318733,9.034e-05,101010.0,101000.0,0.04963564]
[1734554318936,0.00209034,101010.0,101000.0,0.04963564]
[1734554319126,0.00209034,101010.0,101000.0,0.34963564]
[1734554319334,0.3608,101040.0,101000.0,0.66090864]
[1734554319536,0.049513,101030.0,101020.0,0.049517]
[1734554319732,0.3608,101030.0,101010.0,0.30773558]
[1734554319932,0.410314,101030.0,101010.0,0.25821358]
[1734554320232,0.41040999,101030.0,101010.0,0.25821358]
[1734554320638,9.599e-05,101030.0,101020.0,0.049517]
[1734554320940,0.00609599,101030.0,101020.0,0.049517]
[1734554321339,0.00609599,101030.0,101020.0,0.710317]
[1734554321638,0.3608,101070.0,101040.0,0.049504]
[1734554321839,0.049504,101050.0,101030.0,0.30772558]
[1734554322032,0.049507,101040.0,101030.0,0.25821358]
[1734554322234,0.3608,101060.0,101030.0,0.91901358]
[1734554322537,0.36290642,101080.0,101060.0,0.049495]
[1734554322934,0.049497,101060.0,101040.0,0.77627408]
[1734554323139,0.410302,101050.0,101040.0,8.908e-05]
[1734554323530,0.710305,101050.0,100980.0,0.34896118]
[1734554323735,0.049532,100990.0,100980.0,0.70976118]
[1734554324037,0.3608,100990.0,100980.0,0.34896118]
[1734554324238,0.410332,100990.0,100980.0,0.34896118]
[1734554324436,0.71043132,100990.0,100980.0,0.3298774]
[1734554324741,0.71043132,100990.0,100960.0,0.00010582]
[1734554324742,0.049542,100970.0,100960.0,0.00010582]
[1734554325046,0.771142,100970.0,100960.0,0.00010582]
[1734554325343,0.3608,100980.0,100960.0,0.00010582]
[1734554325643,9.932e-05,100990.0,100980.0,0.049537]
[1734554325940,0.3608,101010.0,101000.0,0.049525]
[1734554326135,0.049518,101020.0,101000.0,0.049525]
[1734554326638,0.13939548,101030.0,101010.0,0.25821358]
[1734554326837,0.13939548,101030.0,101020.0,0.049517]
[1734554327038,0.00148604,101040.0,101030.0,0.049512]
[1734554327234,0.3608,101060.0,101030.0,0.049512]
[1734554327437,0.008,101020.0,101010.0,0.30773558]
[1734554327742,0.3688,101020.0,101010.0,0.049522]
[1734554327939,0.410322,101010.0,100980.0,0.003]
[1734554328144,0.771132,100990.0,100980.0,6.8e-07]
[1734554328344,0.77124975,100990.0,100980.0,6.8e-07]
[1734554328839,0.77124975,100990.0,100970.0,0.00012494]
[1734554328840,0.049537,100980.0,100970.0,0.00012494]
[1734554329049,0.410337,100980.0,100970.0,0.00012494]
[1734554329745,0.96855058,100980.0,100970.0,0.00012494]
[1734554329934,0.710337,100980.0,100970.0,9.4e-07]
[1734554330139,0.410337,100980.0,100970.0,9.4e-07]
[1734554330340,0.720337,100980.0,100970.0,9.4e-07]
[1734554330742,0.713337,100980.0,100970.0,9.4e-07]
[1734554331045,0.049562,100930.0,100910.0,0.0005]
[1734554331242,0.049562,100930.0,100910.0,0.00158]
[1734554331243,0.3608,100920.0,100910.0,0.00158]
[1734554331438,0.3608,100920.0,100910.0,0.0005]
[1734554331641,0.3608,100940.0,100930.0,0.04956]
[1734554331949,0.3608,100950.0,100940.0,0.049556]
[1734554332143,0.00148676,100970.0,100930.0,0.65360085]
[1734554332352,0.00148676,100970.0,100960.0,0.049546]
[1734554332648,0.41182876,100970.0,100950.0,0.04955]
[1734554332951,0.410348,100960.0,100940.0,0.049556]
[1734554333137,0.049548,100960.0,100950.0,0.049551]
[1734554333337,0.410348,100960.0,100950.0,0.049551]
[1734554333543,0.00848676,100970.0,100960.0,0.049546]
[1734554333837,0.01148676,100970.0,100960.0,0.049546]
[1734554334042,0.00448676,100970.0,100960.0,0.049546]
[1734554334249,0.41482876,100970.0,100960.0,0.049546]
[1734554334439,0.049548,100960.0,100930.0,0.00011764]
[1734554334639,0.3608,100940.0,100930.0,0.00011764]
[1734554334844,0.410356,100940.0,100930.0,0.00011764]
[1734554335145,0.76383921,100940.0,100930.0,0.00011764]
[1734554335340,0.410356,100940.0,100930.0,0.00011764]
[1734554335850,0.3608,100940.0,100930.0,0.04967864]
[1734554336038,0.049547,100960.0,100930.0,0.66191764]
[1734554336238,0.36928676,100970.0,100930.0,0.66191764]
[1734554336239,0.3608,100940.0,100930.0,0.35067464]
[1734554336441,0.410356,100940.0,100930.0,0.00111764]
[1734554336642,0.049556,100940.0,100930.0,0.00111764]
[1734554336847,0.411356,100940.0,100930.0,0.00011764]
[1734554337148,0.3618,100940.0,100930.0,0.04967864]
[1734554337651,0.001,100940.0,100930.0,0.04967864]
[1734554337849,0.007,100940.0,100930.0,0.04967864]
[1734554338350,0.007,100940.0,100930.0,0.00011764]
[1734554338351,0.3618,100940.0,100930.0,0.00011764]
[1734554338555,0.416357,100940.0,100930.0,0.00011764]
[1734554339059,1.06993768,100940.0,100930.0,0.00011764]
[1734554339353,1.06693768,100940.0,100930.0,0.00111764]
[1734554339942,0.71045447,100940.0,100930.0,0.00111764]
[1734554340248,0.049571,100910.0,100900.0,0.1]
[1734554340450,0.771171,100910.0,100900.0,0.1]
[1734554340943,0.049579,100900.0,100880.0,0.3608]
[1734554341143,0.410379,100900.0,100880.0,0.42452646]
[1734554341344,0.049572,100910.0,100890.0,0.04965657]
[1734554341548,0.410376,100900.0,100890.0,7.557e-05]
[1734554341852,0.410376,100900.0,100890.0,0.01465829]
[1734554342052,0.6618,100910.0,100900.0,0.049576]
[1734554342053,0.001,100910.0,100900.0,0.049576]
[1734554342254,0.411371,100910.0,100900.0,0.049576]
[1734554342452,0.049576,100900.0,100890.0,0.36137557]
[1734554342650,0.410376,100900.0,100890.0,0.05365657]
[1734554342843,0.410376,100900.0,100890.0,0.00407557]
[1734554343048,0.049576,100900.0,100890.0,0.36487557]
[1734554343251,0.410372,100910.0,100890.0,0.41445657]
[1734554343555,0.411376,100900.0,100890.0,0.00457557]
[1734554343754,0.411376,100900.0,100890.0,0.01864851]
[1734554344353,0.411376,100900.0,100890.0,0.31664851]
[1734554344559,0.3708,100910.0,100890.0,0.67694851]
[1734554344857,0.01,100910.0,100900.0,0.049576]
[1734554345056,0.01,100910.0,100900.0,0.410376]
[1734554345246,0.01,100910.0,100900.0,0.049576]
[1734554345448,0.01,100910.0,100890.0,0.00407557]
[1734554345449,0.049576,100900.0,100890.0,0.00407557]
[1734554345654,0.410376,100900.0,100890.0,0.00407557]
[1734554345856,0.76385921,100900.0,100890.0,0.00407557]
[1734554346062,0.76385921,100900.0,100890.0,7.557e-05]
[1734554346254,0.411376,100900.0,100890.0,7.557e-05]
[1734554346450,0.050576,100900.0,100890.0,0.04965657]
[1734554346650,0.001,100900.0,100890.0,0.34965657]
[1734554346947,0.001,100900.0,100890.0,7.557e-05]
[1734554347156,0.411376,100900.0,100890.0,7.557e-05]
[1734554347649,0.411376,100900.0,100890.0,0.01821014]
[1734554347857,0.411376,100900.0,100890.0,0.00407557]
[1734554348452,0.3618,100900.0,100890.0,0.049581]
[1734554348658,0.01,100910.0,100900.0,0.049576]
[1734554349057,0.01,100910.0,100890.0,0.3]
[1734554349058,0.01,100910.0,100890.0,0.3608]
[1734554349360,0.049583,100890.0,100870.0,0.050091]
[1734554349559,0.049586,100880.0,100870.0,0.050091]
[1734554349745,0.3608,100890.0,100870.0,0.0001285]
[1734554349954,0.410386,100880.0,100870.0,0.0001285]
[1734554350149,0.410386,100880.0,100870.0,0.01425529]
[1734554350353,0.410377,100900.0,100870.0,0.31425529]
[1734554350555,0.410385,100890.0,100870.0,0.0497185]
[1734554351067,0.411385,100890.0,100870.0,0.0497185]
[1734554351263,0.3608,100880.0,100870.0,0.0497185]
[1734554351464,0.411385,100890.0,100870.0,0.4105185]
[1734554351756,0.410386,100880.0,100870.0,0.0001285]